Cogmind - Beta 12 @@@ ROGUE MODE // 2023.03.17 @ 08:15:11 Player: TrialByFire Result: Destroyed by as-21148 with Assembled Heavy Rifle Performance ------------- Evolutions (0) 0 Regions Visited (2) 400 Robots Destroyed (15) 75 Value Destroyed (403) 403 Prototype IDs (0) 0 Alien Tech Used (0) 0 Bonus (0) 0 TOTAL SCORE: 878 Bonus ------- None Cogmind --------- Core Integrity 0/250 Matter 235/300 Energy 12/100 System Corruption 5% Temperature Cool (14) Movement Rolling (110) Ox2 Location -10/Mines Parts ------- > --- POWER (1) -------- (None) > --- PROPULSION (2) --- Wheel > --- UTILITY (2) ------ Large Storage Unit > --- WEAPON (2) ------- EM Pulse Gun > --- INVENTORY (15) --- Light Treads Light Treads Light Treads Light Treads Wheel Datajack Mining Laser Peak State ------------ > --- POWER ------------ Ion Engine > --- PROPULSION ------- Armored Wheel Armored Wheel > --- UTILITY ---------- Heat Sink Large Storage Unit > --- WEAPON ----------- Light EM Pulse Cannon Light EM Pulse Cannon > --- INVENTORY -------- Ion Engine Light Treads Light Treads Light Treads Aluminum Leg Wheel EM Pulse Gun Grenade Launcher Datajack Mining Laser [Rating: 12] Favorites ----------- Power Ion Engine Engine Ion Engine Propulsion Aluminum Leg Leg Aluminum Leg Wheel Armored Wheel Utility Heat Sink Device Heat Sink Storage Small Storage Unit Weapon Light EM Pulse Cannon Energy Gun Medium Laser Energy Cannon Light EM Pulse Cannon Launcher Grenade Launcher Build | -11 -10 -10 ------- Run | Jun Mat Min Slots Evolved . | . . . Power . | . . . Propulsion . | . . . Utility . | . . . Weapon . | . . . Parts Attached 22 | 6 10 6 Power 4 | 1 2 1 Engine 4 | 1 2 1 Core . | . . . Reactor . | . . . Propulsion 7 | 2 3 2 Treads . | . . . Leg 3 | 2 1 . Wheel 4 | . 2 2 Hover . | . . . Flight . | . . . Utility 3 | 1 2 . Device 1 | . 1 . Storage 2 | 1 1 . Processor . | . . . Hackware . | . . . Protection . | . . . Artifact . | . . . Weapon 8 | 2 3 3 Energy Gun 4 | 2 1 1 Energy Cannon 3 | . 2 1 Ballistic Gun . | . . . Ballistic Cannon . | . . . Launcher 1 | . . 1 Special Weapon . | . . . Impact Weapon . | . . . Slashing Weapon . | . . . Piercing Weapon . | . . . Special Melee Weapon . | . . . Unidentified Prototypes . | . . . Parts Lost 12 | . 3 9 Power 3 | . 1 2 Propulsion 4 | . 1 3 Utility 1 | . . 1 Weapon 4 | . 1 3 Highest Loss Streak 9 | . 3 9 To Critical Strikes . | . . . Average Slot Usage (%) 93 | . 94 82 Engine 13 | . 13 11 Leg 13 | . 14 . Wheel 13 | . 12 25 Device 11 | . 11 7 Storage 14 | . 14 14 Energy Gun 11 | . 13 2 Energy Cannon 13 | . 12 19 Naked Turns . | . . . Heaviest Build 34 | 12 34 34 Greatest Support 24 | 20 24 24 Greatest Overweight (x) 6 | 1 6 1 Average Overweight (x) . | . . 1 Largest Inventory Capacity 15 | 8 15 15 Average Capacity 10 | 7 10 15 Most Carried 13 | 8 12 13 Average Carried 8 | 5 7 10 Final Capacity 15 | 8 15 15 Final Carried 12 | 6 12 7 Class Distribution -------------------- 100% | Mutant Dominant Class ---------------- Mutant | -10/Materials Mutant | -10/Mines Resources | -11 -10 -10 ----------- Run | Jun Mat Min Matter Collected 360 | 242 118 . Remotely . | . . . Salvage Created 448 | . 403 45 Parts 30 | . 30 . Haulers Intercepted . | . . . Recyclers Shooed . | . . . Parts Field Recycled . | . . . Retrieved Matter . | . . . Parts Self-Destructed . | . . . Prevented . | . . . Kills | -11 -10 -10 ------- Run | Jun Mat Min Combat Hostiles Destroyed 19 | . 13 6 Guns 7 | . 7 . Cannons 6 | . 4 2 AOE 5 | . 1 4 Classes Destroyed 4 | . 3 1 Watcher 2 | . 2 . Swarmer 6 | . 6 . Grunt 7 | . 7 . Assembled 6 | . . 6 Best Kill Streak 5 | . 4 5 Combat Bots Only 5 | . 3 5 Max Kills in Single Turn 2 | . 1 2 Gunslinging . | . . . Exploded 2 | . 1 2 Melee . | . . . Uniques/NPCs Destroyed . | . . . Combat | -11 -10 -10 -------- Run | Jun Mat Min Damage Taken 1341 | . 473 868 Core 253 | . 122 131 Absorbed by Shields . | . . . Regen/Repaired (Parts) 38 | . 38 . Core Remaining (%) 100 | 100 . . Volleys Fired 62 | . 42 20 Largest 2 | . 2 2 Hottest 112 | . 112 112 Shots Fired 97 | . 72 25 Gun 62 | . 56 6 Cannon 30 | . 16 14 Launcher 5 | . . 5 Special . | . . . Kinetic . | . . . Thermal 56 | . 56 . Explosive 5 | . . 5 Electromagnetic 36 | . 16 20 Robot Hit Streak 8 | . 8 8 Robot Miss Streak 5 | . 5 2 Penetration Max . | . . . Secondary Targets . | . . . Shots Hit Robots 60 | . 46 14 Core Hits 34 | . 20 14 Critical Kills . | . . . Critical Parts Destroyed . | . . . Critical Strikes 4 | . 4 . Burn 4 | . 4 . Melee Attacks . | . . . Impact . | . . . Slashing . | . . . Piercing . | . . . Sneak Attacks . | . . . Combat Hostiles . | . . . Follow-up Attacks . | . . . Damage Inflicted 1272 | . 782 490 Guns 506 | . 459 47 Cannons 397 | . 226 171 Explosions 369 | . 97 272 Melee . | . . . Ramming . | . . . Kinetic . | . . . Thermal 556 | . 556 . Explosive 272 | . . 272 Electromagnetic 444 | . 226 218 Impact . | . . . Slashing . | . . . Piercing . | . . . Highest Corruption 5 | . . 5 Average Corruption 4 | . . 4 Corruption Purged . | . . . Corruption Blocked . | . . . Overload Shots . | . . . Overflow Damage . | . . . Projectiles . | . . . Explosions . | . . . Melee . | . . . Knockbacks . | . . . Impact . | . . . Kinetic . | . . . Secondary . | . . . Self-Inflicted Damage 26 | . . 26 Shots 1 | . . 1 Rammed . | . . . Targets Rammed . | . . . Kicked . | . . . Crushed . | . . . Highest Temperature 216 | . 216 64 Average Temperature 45 | . 52 25 Received Heat Transfer 198 | . 198 . Siege Activations . | . . . Robots Corrupted . | . . . Combat Hostiles . | . . . Parts Fried 2 | . 2 . Impact Corruptions . | . . . Robots Melted 1 | . 1 . Combat Hostiles 1 | . 1 . Parts Melted 8 | . 8 . Heat Transferred 1715 | . 1715 . Parts Sabotaged . | . . . Parts Stolen . | . . . Parts Stripped . | . . . Power Chain Reactions 3 | . 3 . Missiles Intercepted . | . . . Alert | -11 -10 -10 ------- Run | Jun Mat Min Peak Influence 161 | . 161 136 Initial 30 | . . 30 Average 65 | . 70 63 Maximum Alert Level . | . . . Low Security (%) 100 | 100 100 100 Level 1 . | . . . Level 2 . | . . . Level 3 . | . . . Level 4 . | . . . Level 5 . | . . . High Security . | . . . Max Security . | . . . Squads Dispatched 1 | . 1 . Investigation . | . . . Extermination . | . . . Reinforcement 1 | . 1 . Assault . | . . . Garrison . | . . . Intercept . | . . . Searches Triggered . | . . . Construction Impeded . | . . . Haulers Reinforced . | . . . Active Scanning Responses . | . . . Cargo Convoy Interrupts . | . . . Stealth | -11 -10 -10 --------- Run | Jun Mat Min Distress Signals 1 | . 1 . Communications Jammed . | . . . Distress Signals . | . . . Times Spotted 29 | . 17 12 Peak Tracking Total 8 | . 4 8 Tactical Retreats 2 | . . 2 Traps | -11 -10 -10 ------- Run | Jun Mat Min Traps Triggered 1 | . 1 . Indirectly . | . . . Trap Hack Attempts . | . . . Triggered . | . . . Disarmed . | . . . Reprogrammed 10 | . 10 . Reused . | . . . Traps Extracted . | . . . Installed . | . . . Triggered . | . . . Machines | -11 -10 -10 ---------- Run | Jun Mat Min Machines Disabled 6 | . . 6 Max in Single Turn 2 | . . 2 Machines Repaired . | . . . Machines Sabotaged . | . . . Overloaded Fab Kills . | . . . Hacking | -11 -10 -10 --------- Run | Jun Mat Min Machines Accessed 8 | . 8 . Terminals 6 | . 6 . Fabricators . | . . . Repair Stations 1 | . 1 . Recycling Units 1 | . 1 . Scanalyzers . | . . . Garrison Access . | . . . Total Hacks 22 | . 22 . Successful 15 | . 15 . Failed 7 | . 7 . Catastrophic . | . . . Database Lockouts . | . . . Manual . | . . . Terminals 19 | . 19 . Fabricators . | . . . Repair Stations 2 | . 2 . Recycling Units 1 | . 1 . Scanalyzers . | . . . Garrison Access . | . . . Terminal Hacks 12 | . 12 . Terminal Index 1 | . 1 . Locate Traps 4 | . 4 . Reprogram Traps 2 | . 2 . Surveillance Status 1 | . 1 . Hauler Manifests 1 | . 1 . Zone Layout 3 | . 3 . Fabricator Hacks . | . . . Repair Station Hacks 2 | . 2 . Scan Component 1 | . 1 . Repair 1 | . 1 . Recycling Unit Hacks 1 | . 1 . Report Inventory 1 | . 1 . Scanalyzer . | . . . Garrison Access Hacks . | . . . Unauthorized Hacks . | . . . Terminals . | . . . Fabricators . | . . . Repair Stations . | . . . Recycling Units . | . . . Scanalyzers . | . . . Garrison Access . | . . . Data Cores Recovered . | . . . Used . | . . . Hacking Detections 5 | . 5 . Full Trace Events . | . . . Feedback Events . | . . . Feedback Blocked . | . . . Robot Schematics Acquired . | . . . Robots Built . | . . . Authchips . | . . . Time . | . . . Total Robot Build Rating . | . . . Part Schematics Acquired . | . . . Parts Built . | . . . Authchips . | . . . Time . | . . . Total Part Build Rating . | . . . Parts Repaired 1 | . 1 . Time 26 | . 26 . Parts Recycled . | . . . Recycled Matter . | . . . Retrieved Matter . | . . . Retrieved Components . | . . . Parts Scanalyzed . | . . . Part Schematics Acquired . | . . . Parts Damaged . | . . . Bothacking | -11 -10 -10 ------------ Run | Jun Mat Min Used RIF Installer . | . . . Robots Hacked . | . . . Non-combat . | . . . Combat . | . . . Robot Hacks Applied . | . . . Relay Couplers Released . | . . . Fabnet Peak Effective % . | . . . Robots Rewired . | . . . Allies Hacked . | . . . Hacks Repelled . | . . . Allies | -11 -10 -10 -------- Run | Jun Mat Min Total Allies . | . . . Largest Group . | . . . Highest-Rated Group . | . . . Highest-Rated Ally . | . . . Total Orders . | . . . Ally Attacks . | . . . Total Damage . | . . . Kills . | . . . Allies Corrupted . | . . . Allies Melted . | . . . Intel | -11 -10 -10 ------- Run | Jun Mat Min Robot Analysis Total . | . . . Derelict Logs Recovered . | . . . Drone Launches . | . . . Drone Recoveries . | . . . Exploration | -11 -10 -10 ------------- Run | Jun Mat Min Turns Passed 1099 | 63 935 101 Spaces Moved 740 | 48 644 48 Core 32 | 27 5 . Treads . | . . . Legs 321 | 21 300 . Wheels 387 | . 339 48 Hover . | . . . Flight . | . . . Fastest Speed 50 | 50 90 100 Average Speed 110 | 97 111 104 Slowest Speed 350 | 120 350 105 Overloaded Moves . | . . . Propulsion Burnouts . | . . . Robots Hopped . | . . . Cave-ins Triggered . | . . . Exploration Rate (%) 38 | 4 87 24 Regions Visited 2 Branch Regions 1 Pre-discovered Areas . | . . . Known Exits Taken . | . . . Unknown Exits Taken 2 | 1 1 . Scrap Searched . | . . . Spaces Dug . | . . . Terrain Destroyed 23 | . 9 14 Melee . | . . . Projectile . | . . . AOE 23 | . 9 14 Terrain Rammed . | . . . Walls Destroyed . | . . . Machines Disabled . | . . . Actions | -11 -10 -10 --------- Run | Jun Mat Min Total 930 | 64 790 76 Wait 71 | . 70 1 Move 738 | 47 643 48 Hop . | . . . Pick Up 28 | 11 17 . Fast Attach 5 | 1 4 . Attach 16 | 5 5 6 Detach 1 | . . 1 Swap 1 | . 1 . Drop 8 | . 8 . Fire 62 | . 42 20 Melee . | . . . Ram . | . . . Kick . | . . . Crush . | . . . Escape Stasis . | . . . Rewire . | . . . Trap . | . . . Miscellaneous . | . . . Route ------- -11/Junkyard -10/Materials (discovered 5 exits: [*Mat x3] / [*Min x2]) -10/Mines History --------- Turn | Location | Event 6 | -11/Junkyard | Discovered new exit (range 16) 64 | -11/Junkyard | Entered Materials 284 | -10/Materials | Discovered new exit (range 14) 318 | -10/Materials | Build established: Mutant 370 | -10/Materials | Discovered new exit (range 16) 406 | -10/Materials | Discovered new exit (range 22) 514 | -10/Materials | Lost 3 parts (1p1n1w) 750 | -10/Materials | Repaired Aluminum Leg 775 | -10/Materials | Discovered new exit (range 8) 924 | -10/Materials | Discovered new exit (range 4) 999 | -10/Materials | Entered Mines 1006 | -10/Mines | Met a Derelict bent on vengeance 1019 | -10/Mines | Assembled infested the area 1053 | -10/Mines | Core integrity fell below 50% 1087 | -10/Mines | Core integrity fell below 20% 1100 | -10/Mines | Destroyed by as-21148 with Assembled Heavy Rifle Last Messages --------------- 01057_ as-13840 destroyed. 01061_ Laser Drill disabled. 01061_ as-78901 destroyed. 01062_ Ion Engine destroyed. 01063_ as-11852 destroyed. 01063_ as-06228 destroyed. 01063_ Knocked back. 01066_ Grenade Launcher destroyed. 01067_ Arm. Wheel destroyed. 01067_ System corrupted by crushing effect (+4). 01074_ Knocked back. 01079_ Lgt. EM Pulse Cannon destroyed. 01081_ Wheel destroyed. 01081_ System corrupted by crushing effect (+1). 01081_ Knocked back. 01084_ as-94472 destroyed. 01087_ Lgt. EM Pulse Cannon destroyed. 01090_ Arm. Wheel destroyed. 01098_ Ion Engine destroyed. 01098_ Knocked back. Map ----- +----------------------------------------------------+ | | | | | | | | | | | | | | | | | | | | | | | | | | | | | | | | | | | | | | | | | ?????????????????????????????????????????????? | | ?????????????????????????????????????????????? | | ?????????????????????????????????????????????? | | ??????????????????????????####???????????????? | | ????????????????????????## ##??????????????? | | ????????????########??###@ #??????????????? | | ???????????## #### #??????????????? | | ??????????## a ##??????????????? | | ??????????# """ %a ###???????????????? | | ??????????# """ a ##?????????????????? | | ??????????# """ ######??????????????????? | | ??????????# ##???????????????????????? | | #????????## #????????????????????????? | | ?????## #######???????????????????? | | ????# # # ###???????????????? | | # ??## ### % #???????????????? | | # ## #?# " #???????????????? | | # #?## " #???????????????? | | #??# #???????????????? | | #??## #???????????????? | | ?????### #???# "" #???????????????? | | ???????### #??? "" #???????????????? | | ?????????### #??? " #???????????????? | | ???????????# #??? #???????????????? | | ???????????# ##### "" #???????????????? | | ???????????# """ #???????????????? | | ???????????####### """ #???????????????? | | ?????????????????? % #???????????????? | | ??????????????????### #######???????????????? | | ????????????????????# #?????????????????????? | +----------------------------------------------------+ Best States ------------- Heat Dissipation 35 Energy Generation 10 Energy Capacity 250 Matter Stores 300 Matter Capacity 300 Sight Range 16 Terrain Scan Density 10 Evasion (%) 55 Item Schematics ----------------- None Robot Schematics ------------------ None Fabricated ------------ Nothing Alien Tech Used ----------------- None Achievements -------------- None Challenges ------------ None Game ------ Seed AnalysisPoweredRay Manual? 0 Play Time 00:17:31 Cumulative 48.4 hours Start 2023.03.17 @ 07:57:15 End 2023.03.17 @ 08:15:11 Sessions 1 Manual Loads 0 Difficulty Rogue Special Mode None Game No. 33 Rogue 33 Adventurer 0 Explorer 0 Win Type - Total 0 Types 0/0/0/0/0/0/0/0/0 Lore% 28 Gallery% 34 Achievement% 27 Wizard Run 0 Options --------- ASCII 0 Keyboard 0 Movement Numpad Keybinds 0 Fullscreen 1 Font 24/Terminus Map View 76x50 Tactical HUD 1 Map Filters NONE Filters NONE Steam 1 RUN: c756fb4e-d69d-499d-ac02-55fac8db2d9b